fUST/lending_fUST_20251212
["ID","MTS","AMOUNT","RATE_DAILY","PERIOD"]
[398263417,1765473123279,-297.88571236,0.00016164,2]
[398263418,1765473123288,-500.0,0.00016164,2]
[398263419,1765473123297,-929.81,0.00016164,2]
[398263420,1765473123307,-9833.23,0.00016164,2]
[398263421,1765473123316,-1802.15,0.00016164,2]
[398263422,1765473123326,-6470.75,0.00016164,2]
[398263423,1765473123336,-946.88,0.00016164,2]
[398263424,1765473123346,-997.71,0.00016164,2]
[398263425,1765473123356,-500.0,0.00016164,2]
[398263426,1765473123365,-500.0,0.00016164,2]
[398263427,1765473123375,-500.0,0.00016164,2]
[398263428,1765473123385,-711.68,0.00016164,2]
[398263429,1765473123395,-975.53,0.00016164,2]
[398263430,1765473123404,-500.0,0.00016164,2]
[398263431,1765473123414,-2355.47,0.00016164,2]
[398263432,1765473123423,-6461.74,0.00016164,2]
[398263433,1765473123433,-705.81,0.00016164,2]
[398263434,1765473123443,-1840.07,0.00016164,2]
[398263435,1765473123453,-1427.0,0.00016164,2]
[398263436,1765473123463,-3038.1,0.00016164,2]
[398263437,1765473123472,-500.0,0.00016164,2]
[398263438,1765473123482,-3082.36,0.00016164,2]
[398263439,1765473123492,-500.0,0.00016164,2]
[398263440,1765473123502,-1002.42,0.00016164,2]
[398263441,1765473123511,-500.0,0.00016164,2]
[398263442,1765473123521,-500.0,0.00016164,2]
[398263443,1765473123530,-2274.69,0.00016164,2]
[398263444,1765473123540,-534.41,0.00016164,2]
[398263445,1765473123549,-2058.31,0.00016164,2]
[398263446,1765473123559,-501.66216375,0.00016164,2]
[398263447,1765473123569,-543.43,0.00016164,2]
[398263448,1765473123580,-2874.84,0.00016164,2]
[398263449,1765473123590,-3909.79,0.00016164,2]
[398263450,1765473123599,-1626.08,0.00016164,2]
[398263451,1765473123610,-1213.67,0.00016164,2]
[398263452,1765473123620,-500.0,0.00016164,2]
[398263453,1765473123630,-1495.1,0.00016164,2]
[398263454,1765473123639,-2147.35,0.00016164,2]
[398263455,1765473123649,-2767.88,0.00016164,2]
[398263456,1765473123658,-9868.9,0.00016164,2]
[398263457,1765473123667,-737.71,0.00016164,2]
[398263458,1765473123676,-2466.81,0.00016164,2]
[398263459,1765473123685,-2201.84,0.00016164,2]
[398263460,1765473123695,-508.55,0.00016164,2]
[398263461,1765473123705,-500.0,0.00016164,2]
[398263462,1765473123714,-642.28,0.00016164,2]
[398263463,1765473123724,-868.4,0.00016164,2]
[398263464,1765473123733,-1593.22,0.00016164,2]
[398263465,1765473123743,-500.0,0.00016164,2]
[398263466,1765473123752,-513.64,0.00016164,2]
[398263467,1765473123762,-1703.23,0.00016164,2]
[398263468,1765473123772,-239.61343721,0.00016164,2]
[398263469,1765473123782,-598.2,0.00016164,2]
[398263470,1765473123792,-3702.43,0.00016164,2]
[398263471,1765473123802,-3797.02,0.00016164,2]
[398263472,1765473123811,-1310.35,0.00016164,2]
[398263473,1765473123826,-500.0,0.00016164,2]
[398263474,1765473123836,-1964.83,0.00016164,2]
[398263475,1765473123847,-1191.2,0.00016164,2]
[398263476,1765473123858,-2176.01,0.00016164,2]
[398263477,1765473123868,-1848.59,0.00016164,2]
[398263478,1765473123879,-3062.71,0.00016164,2]
[398263479,1765473123889,-2486.75,0.00016164,2]
[398263480,1765473123899,-1358.97,0.00016164,2]
[398263481,1765473123910,-1663.27,0.00016164,2]
[398263482,1765473123920,-1044.05,0.00016164,2]
[398263483,1765473123930,-2993.28,0.00016164,2]
[398263484,1765473123940,-645.89,0.00016164,2]
[398263485,1765473123950,-900.08,0.00016164,2]
[398263486,1765473123960,-546.01,0.00016164,2]
[398263487,1765473123971,-40715.35,0.00016164,2]
[398263488,1765473123981,-500.0,0.00016164,2]
[398263489,1765473123995,-500.0,0.00016164,2]
[398263490,1765473124004,-3514.28,0.00016164,2]
[398263491,1765473124015,-1320.84,0.00016164,2]
[398263492,1765473124027,-1458.76,0.00016164,2]
[398263493,1765473124037,-1549.69,0.00016164,2]
[398263494,1765473124047,-500.0,0.00016164,2]
[398263495,1765473124058,-7942.46,0.00016164,2]
[398263496,1765473124069,-3763.94,0.00016164,2]
[398263497,1765473124079,-10354.69,0.00016164,2]
[398263498,1765473124089,-937.22,0.00016164,2]
[398263499,1765473124099,-500.0,0.00016164,2]
[398263500,1765473124110,-500.0,0.00016164,2]
[398263501,1765473124120,-9226.2,0.00016164,2]
[398263502,1765473124130,-783.44,0.00016164,2]
[398263503,1765473124139,-500.0,0.00016327,2]
[398263504,1765473124149,-1000.0,0.00016364,2]
[398263505,1765473124160,-244.0,0.00016364,2]
[398263506,1765473124170,-2156.0,0.00016417,2]
[398263507,1765473124180,-1360.0,0.00016417,2]
[398263508,1765473124190,-631.0,0.00016417,2]
[398263509,1765473124200,-1608.54,0.00016438,2]
[398263510,1765473124209,-2302.959549,0.00016438,2]
[398263511,1765473124219,-314.29868265,0.00016438,2]
[398263512,1765473124229,-500.0,0.00016438,2]
[398263513,1765473124239,-935.65,0.00016438,2]
[398263514,1765473124249,-733.38,0.00016438,2]
[398263515,1765473124258,-500.0,0.00016438,2]
[398263516,1765473124268,-1097.28,0.00016438,2]
[398263517,1765473124278,-500.0,0.00016438,2]
[398263518,1765473124287,-878.81,0.00016438,2]
[398263519,1765473124297,-1446.65,0.00016438,2]
[398263520,1765473124307,-500.0,0.00016438,2]
[398263521,1765473124317,-724.0,0.00016438,2]
[398263522,1765473124327,-834.84,0.00016438,2]
[398263523,1765473124341,-834.84,0.00016438,2]
[398263524,1765473124351,-834.84,0.00016438,2]
[398263525,1765473124361,-672.09,0.00016438,2]
[398263526,1765473124372,-349.20373323,0.00016438,2]
[398263527,1765473125408,-156.940193,0.00012876,2]
[398263528,1765473125418,-500.0,0.0001315,2]
[398263529,1765473125427,-500.0,0.00013424,2]
[398263530,1765473125436,-502.80542278,0.00013698,2]
[398263531,1765473125446,-538.1,0.00013972,2]
[398263532,1765473125455,-538.1,0.00014246,2]
[398263533,1765473125465,-538.1,0.0001452,2]
[398263534,1765473125474,-456.43658762,0.00014794,2]
[398263535,1765473125485,-81.66341238,0.00014794,2]
[398263536,1765473125494,-347.80656762,0.00015068,2]
[398263537,1765473125512,-190.29343238,0.00015068,2]
[398263538,1765473125521,-538.1,0.00015342,2]
[398263539,1765473125531,-538.1,0.00015616,2]
[398263540,1765473125540,-500.0,0.0001589,2]
[398263541,1765473125549,-538.1,0.0001589,2]
[398263542,1765473125558,-500.0,0.00016164,2]
[398263543,1765473125567,-500.0,0.00016164,2]
[398263544,1765473125575,-538.1,0.00016164,2]
[398263545,1765473125584,-485.63626677,0.00016438,2]
[398263546,1765473125593,-834.84,0.00016438,2]
[398263547,1765473125602,-834.84,0.00016438,2]
[398263548,1765473125611,-834.84,0.00016438,2]
[398263549,1765473125620,-834.84,0.00016438,2]
[398263550,1765473125628,-834.84,0.00016438,2]
[398263551,1765473125637,-834.84,0.00016438,2]
[398263552,1765473125645,-834.84,0.00016438,2]
[398263553,1765473125654,-834.84,0.00016438,2]
[398263554,1765473125663,-834.84,0.00016438,2]
[398263555,1765473125676,-834.84,0.00016438,2]
[398263556,1765473125685,-540.2,0.00016438,2]
[398263557,1765473125694,-1325.77,0.00016438,2]
[398263558,1765473125703,-500.0,0.00016438,2]
[398263559,1765473125712,-921.35,0.00016438,2]
[398263560,1765473125723,-790.82,0.00016438,2]
[398263561,1765473125733,-1499.79,0.00016438,2]
[398263562,1765473125742,-500.0,0.00016438,2]
[398263563,1765473125751,-740.19,0.00016438,2]
[398263564,1765473125761,-583.67,0.00016438,2]
[398263565,1765473125770,-933.59,0.00016438,2]
[398263566,1765473125780,-1548.83,0.00016438,2]
[398263567,1765473125789,-647.22,0.00016438,2]
[398263568,1765473125799,-942.57,0.00016438,2]
[398263569,1765473125809,-500.0,0.00016438,2]
[398263570,1765473125819,-2824.48,0.00016438,2]
[398263571,1765473125827,-845.83,0.00016438,2]
[398263572,1765473125836,-500.0,0.00016438,2]
[398263573,1765473125845,-500.0,0.00016438,2]
[398263574,1765473125856,-1883.8,0.00016438,2]
[398263575,1765473125865,-542.07,0.00016438,2]
[398263576,1765473125874,-500.0,0.00016438,2]
[398263577,1765473125884,-500.0,0.00016438,2]
[398263578,1765473125892,-626.92,0.00016438,2]
[398263579,1765473125902,-1839.54,0.00016438,2]
[398263580,1765473125911,-2829.3,0.00016438,2]
[398263581,1765473125920,-512.17,0.00016438,2]
[398263582,1765473125929,-700.08,0.00016438,2]
[398263583,1765473125938,-566.46,0.00016438,2]
[398263584,1765473125947,-500.0,0.00016438,2]
[398263585,1765473125956,-1148.61,0.00016438,2]
[398263586,1765473125966,-863.88,0.00016438,2]
[398263587,1765473125975,-500.0,0.00016438,2]
[398263588,1765473125984,-1156.91,0.00016438,2]
[398263589,1765473125997,-500.0,0.00016438,2]
[398263590,1765473126006,-661.38,0.00016438,2]
[398263591,1765473126015,-500.0,0.00016438,2]
[398263592,1765473126028,-676.34,0.00016438,2]
[398263593,1765473126037,-951.19,0.00016438,2]
[398263594,1765473126046,-500.0,0.00016438,2]
[398263595,1765473126056,-696.06,0.00016438,2]
[398263596,1765473126068,-1268.0,0.00016438,2]
[398263597,1765473126077,-532.67,0.00016438,2]
[398263598,1765473126086,-1479.61,0.00016438,2]
[398263599,1765473126095,-1666.57,0.00016438,2]
[398263600,1765473126106,-664.88,0.00016438,2]
[398263601,1765473126116,-571.38,0.00016438,2]
[398263602,1765473126126,-500.0,0.00016438,2]
[398263603,1765473126135,-500.0,0.00016438,2]
[398263604,1765473126145,-500.0,0.00016438,2]
[398263605,1765473126155,-920.86,0.00016438,2]
[398263606,1765473126165,-500.0,0.00016438,2]
[398263607,1765473126175,-1042.86,0.00016438,2]
[398263608,1765473126186,-500.0,0.00016438,2]
[398263609,1765473126195,-500.0,0.00016438,2]
[398263610,1765473126206,-1029.97,0.00016438,2]
[398263611,1765473126216,-500.0,0.00016438,2]
[398263612,1765473126225,-500.0,0.00016438,2]
[398263613,1765473126234,-1041.62,0.00016438,2]
[398263614,1765473126244,-500.0,0.00016438,2]
[398263615,1765473126254,-1387.16,0.00016438,2]
[398263616,1765473126264,-599.12,0.00016438,2]
[398263617,1765473126274,-913.77,0.00016438,2]
[398263618,1765473126284,-678.15,0.00016438,2]
[398263619,1765473126294,-765.56,0.00016438,2]
[398263620,1765473126304,-873.29,0.00016438,2]
[398263621,1765473126314,-500.0,0.00016438,2]
[398263622,1765473126323,-500.0,0.00016438,2]
[398263623,1765473126333,-1017.67,0.00016438,2]
[398263624,1765473126343,-829.65,0.00016438,2]
[398263625,1765473126353,-500.0,0.00016438,2]
[398263626,1765473126368,-378.89645184,0.00016438,2]
[398263627,1765473126380,-500.0,0.00016438,2]
[398263628,1765473126390,-1719.24,0.00016438,2]
[398263629,1765473126400,-576.64,0.00016438,2]
[398263630,1765473126410,-500.0,0.00016438,2]
[398263631,1765473126420,-1186.27,0.00016438,2]
[398263632,1765473126430,-1255.04,0.00016438,2]
[398263633,1765473126439,-500.0,0.00016438,2]
[398263634,1765473126449,-287.68649618,0.00016438,2]
[398263635,1765473126459,-500.0,0.00016438,2]
[398263636,1765473126469,-1858.97,0.00016438,2]
[398263637,1765473126478,-692.35,0.00016438,2]
[398263638,1765473126488,-1482.69,0.00016438,2]
[398263639,1765473126498,-211.36594635,0.00016438,2]
[398263640,1765473126508,-1716.66,0.00016438,2]
[398263641,1765473126518,-3325.19,0.00016438,2]
[398263642,1765473126528,-565.52,0.00016438,2]
[398263643,1765473126538,-724.84,0.00016438,2]
[398263644,1765473126547,-500.0,0.00016438,2]
[398263645,1765473126557,-859.19,0.00016438,2]
[398263646,1765473126567,-500.0,0.00016438,2]
[398263647,1765473126576,-520.73,0.00016438,2]
[398263648,1765473126586,-1859.85,0.00016438,2]
[398263649,1765473126596,-2447.95,0.00016438,2]
[398263650,1765473126606,-1258.13,0.00016438,2]
[398263651,1765473126616,-674.1,0.00016438,2]
[398263652,1765473126626,-745.61,0.00016438,2]
[398263653,1765473126635,-933.97,0.00016438,2]
[398263654,1765473126645,-500.0,0.00016438,2]
[398263655,1765473126656,-500.0,0.00016438,2]
[398263656,1765473126666,-500.0,0.00016438,2]
[398263657,1765473126676,-617.92,0.00016438,2]
[398263658,1765473126686,-1369.84,0.00016438,2]
[398263659,1765473126696,-665.21,0.00016438,2]
[398263660,1765473126706,-500.0,0.00016438,2]
[398263661,1765473126716,-500.0,0.00016438,2]
[398263662,1765473126725,-500.0,0.00016438,2]
[398263663,1765473126735,-1527.37,0.00016438,2]
[398263664,1765473126745,-2464.33,0.00016438,2]
[398263665,1765473126755,-858.6,0.00016438,2]
[398263666,1765473126765,-500.0,0.00016438,2]
[398263667,1765473126775,-2247.37,0.00016438,2]
[398263668,1765473126785,-500.0,0.00016438,2]
[398263669,1765473126795,-1279.21,0.00016438,2]
[398263670,1765473126806,-1195.79,0.00016438,2]
[398263671,1765473126816,-500.0,0.00016438,2]
[398263672,1765473126826,-874.92,0.00016438,2]
[398263673,1765473126836,-526.06,0.00016438,2]
[398263674,1765473126846,-505.47,0.00016438,2]
[398263675,1765473126857,-700.69,0.00016438,2]
[398263676,1765473126867,-681.33,0.00016438,2]
[398263677,1765473126877,-231.20237866,0.00016438,2]
[398263678,1765473126886,-500.0,0.00016438,2]
[398263679,1765473126896,-500.0,0.00016438,2]
[398263680,1765473126906,-701.01,0.00016438,2]
[398263681,1765473126916,-500.0,0.00016438,2]
[398263682,1765473126926,-1761.69,0.00016438,2]
[398263683,1765473126936,-1576.73,0.00016438,2]
[398263684,1765473126947,-668.75,0.00016438,2]
[398263685,1765473126957,-1411.4,0.00016438,2]
[398263686,1765473126967,-500.0,0.00016438,2]
[398263687,1765473126976,-7512.92,0.00016438,2]
[398263688,1765473126988,-637.83,0.00016438,2]
[398263689,1765473127000,-1296.47,0.00016438,2]
[398263690,1765473127010,-1688.98,0.00016438,2]
[398263691,1765473127020,-1630.81,0.00016438,2]
[398263692,1765473127031,-647.94,0.00016438,2]
[398263693,1765473127041,-1041.06,0.00016438,2]
[398263694,1765473127062,-500.0,0.00016438,2]
[398263695,1765473127079,-1080.19,0.00016438,2]
[398263696,1765473127090,-3732.69,0.00016438,2]
[398263697,1765473127101,-803.0,0.00016438,2]
[398263698,1765473127112,-500.0,0.00016438,2]
[398263699,1765473127123,-1663.21,0.00016438,2]
[398263700,1765473127136,-1453.87,0.00016438,2]
[398263701,1765473127152,-950.4,0.00016438,2]
[398263702,1765473127164,-500.0,0.00016438,2]
[398263703,1765473127175,-1287.46,0.00016438,2]
[398263704,1765473127185,-500.0,0.00016438,2]
[398263705,1765473127197,-1595.81,0.00016438,2]
[398263706,1765473127210,-536.67,0.00016438,2]
[398263707,1765473127222,-640.46942357,0.00016438,2]
[398263708,1765473127232,-1030.43,0.00016438,2]
[398263709,1765473127242,-947.41,0.00016438,2]
[398263710,1765473127252,-1145.0,0.00016438,2]
[398263711,1765473127261,-610.1,0.00016438,2]
[398263712,1765473127271,-500.0,0.00016438,2]
[398263713,1765473127281,-916.72,0.00016438,2]
[398263714,1765473127291,-947.38,0.00016438,2]
[398263715,1765473127301,-603.81,0.00016438,2]
[398263716,1765473127311,-1226.34,0.00016438,2]
[398263717,1765473127322,-1501.42,0.00016438,2]
[398263718,1765473127332,-443.34663807,0.00016438,2]
[398263719,1765473127343,-500.0,0.00016438,2]
[398263720,1765473127353,-500.0,0.00016438,2]
[398263721,1765473127365,-1113.97,0.00016438,2]
[398263722,1765473127375,-500.0,0.00016438,2]
[398263723,1765473127386,-817.06,0.00016438,2]
[398263724,1765473127396,-982.88,0.00016438,2]
[398263725,1765473127406,-603.27,0.00016438,2]
[398263726,1765473127416,-1222.38,0.00016438,2]
[398263727,1765473127427,-3340.02,0.00016438,2]
[398263728,1765473127438,-2222.37,0.00016438,2]
[398263729,1765473127448,-1823.03,0.00016438,2]
[398263730,1765473127459,-740.93,0.00016438,2]
[398263731,1765473127470,-500.0,0.00016438,2]
[398263732,1765473127481,-500.0,0.00016438,2]
[398263733,1765473127491,-2279.37,0.00016438,2]
[398263734,1765473127502,-1319.35,0.00016438,2]
[398263735,1765473127513,-500.0,0.00016438,2]
[398263736,1765473127523,-572.55,0.00016438,2]
[398263737,1765473127534,-3595.68,0.00016438,2]
[398263738,1765473127543,-604.59,0.00016438,2]
[398263739,1765473127553,-635.56,0.00016438,2]
[398263740,1765473127563,-870.33,0.00016438,2]
[398263741,1765473127572,-1128.13,0.00016438,2]
[398263742,1765473127583,-1376.81,0.00016438,2]
[398263743,1765473127592,-500.0,0.00016438,2]
[398263744,1765473127602,-1442.81,0.00016438,2]
[398263745,1765473127613,-1626.69,0.00016438,2]
[398263746,1765473127623,-2114.36,0.00016438,2]
[398263747,1765473127633,-1142.02,0.00016438,2]
[398263748,1765473127643,-1166.75,0.00016438,2]
[398263749,1765473127653,-1326.87,0.00016438,2]
[398263750,1765473127663,-1524.16,0.00016438,2]
[398263751,1765473127673,-847.25,0.00016438,2]
[398263752,1765473127684,-922.26,0.00016438,2]
[398263753,1765473127694,-820.02,0.00016438,2]
[398263754,1765473127703,-1088.15,0.00016438,2]
[398263755,1765473127712,-1543.6,0.00016438,2]
[398263756,1765473127722,-681.91,0.00016438,2]
[398263757,1765473127732,-500.0,0.00016438,2]
[398263758,1765473127742,-959.95,0.00016438,2]
[398263759,1765473127752,-500.0,0.00016438,2]
[398263760,1765473127764,-500.0,0.00016438,2]
[398263761,1765473127774,-500.0,0.00016438,2]
[398263762,1765473127784,-1538.57,0.00016438,2]
[398263763,1765473127794,-10671.61,0.00016438,2]
[398263764,1765473127804,-500.0,0.00016438,2]
[398263765,1765473127814,-873.52,0.00016438,2]
[398263766,1765473127825,-3357.79,0.00016438,2]
[398263767,1765473127835,-1731.33,0.00016438,2]
[398263768,1765473127845,-53302.8802248,0.00016438,2]
[398263769,1765473127867,-113.2697752,0.00016438,2]
[398263770,1765473127876,-500.0,0.00016438,2]
[398263771,1765473127886,-500.0,0.00016438,2]
[398263772,1765473127896,-910.44,0.00016438,2]
[398263773,1765473127906,-619.61,0.00016438,2]
[398263774,1765473127916,-1181.33,0.00016438,2]
[398263775,1765473127926,-875.86,0.00016438,2]
[398263776,1765473127935,-604.4,0.00016438,2]
[398263777,1765473127945,-630.31,0.00016438,2]
[398263778,1765473127955,-8389.15,0.00016438,2]
[398263779,1765473127964,-2523.82,0.00016438,2]
[398263780,1765473127975,-500.0,0.00016438,2]
[398263781,1765473127996,-850.25,0.00016438,2]
[398263782,1765473128018,-2914.61,0.00016438,2]
[398263783,1765473128030,-1148.62,0.00016438,2]
[398263784,1765473128041,-1841.97,0.00016438,2]
[398263785,1765473128051,-500.0,0.00016438,2]
[398263786,1765473128061,-500.0,0.00016438,2]
[398263787,1765473128070,-1309.83,0.00016438,2]
[398263788,1765473128080,-500.0,0.00016438,2]
[398263789,1765473128090,-1839.66,0.00016438,2]
[398263790,1765473128100,-950.55,0.00016438,2]
[398263791,1765473128111,-8048.24,0.00016438,2]
[398263792,1765473128121,-500.0,0.00016438,2]
[398263793,1765473128131,-1410.6,0.00016438,2]
[398263794,1765473128141,-1097.57,0.00016438,2]
[398263795,1765473128151,-500.0,0.00016438,2]
[398263796,1765473128161,-500.0,0.00016438,2]
[398263797,1765473128171,-2081.19,0.00016438,2]
[398263798,1765473128181,-1191.31,0.00016438,2]
[398263799,1765473128190,-1560.76,0.00016438,2]
[398263800,1765473128200,-887.69,0.00016438,2]
[398263801,1765473128210,-987.32,0.00016438,2]
[398263802,1765473128220,-5938.55,0.00016438,2]
[398263803,1765473128231,-3580.17472231,0.00016438,2]
[398263804,1765473128244,-1427.14527769,0.00016438,2]
[398263805,1765473128254,-183.05257982,0.00016438,2]
[398263806,1765473131324,178.98,0.0001,2]
[398263807,1765473133506,178.94,0.0001,2]
[398263808,1765473198741,178.96,0.0001,2]
[398263809,1765473243900,175.4,0.0001,2]
[398263810,1765473319399,177.18,0.0001,2]
[398263811,1765473363851,175.44,0.0001,2]
[398263813,1765473446833,176.2,0.0001,2]
[398263814,1765473484498,175.46,0.0001,2]
[398263815,1765473563942,175.71,0.0001,2]
[398263816,1765473604378,175.46,0.0001,2]
[398263819,1765473681662,175.71,0.0001,2]
[398263822,1765473724029,175.46,0.0001,2]
[398263823,1765473804730,175.71,0.0001,2]
[398263829,1765473846003,175.46,0.0001,2]
[398263830,1765473877304,150.0,6.939e-05,2]
[398263831,1765473877685,150.0,7.27e-05,2]
[398263832,1765473878110,150.0,7.6e-05,2]
[398263833,1765473878513,150.0,7.93e-05,2]
[398263834,1765473879412,150.0,8.261e-05,2]
[398263835,1765473918598,167.23,0.0001,2]
[398263837,1765473964953,175.3,0.0001,2]
[398263840,1765474044156,169.84,0.0001,2]
[398263841,1765474084231,175.19,0.0001,2]
[398263846,1765474157728,171.64,0.0001,2]
[398263847,1765474204133,175.12,0.0001,2]
[398263884,1765474232286,-175.12,0.000101,2]
[398263886,1765474232295,-150.0,0.0001015,2]
[398263888,1765474232305,-175.12,0.000102,2]
[398263890,1765474232314,-129.06076944,0.000102,2]
[398263909,1765474232471,-46.05923056,0.000102,2]
[398263912,1765474232480,-175.12,0.000103,2]
[398263915,1765474232490,-175.12,0.000104,2]
[398263918,1765474232499,-175.12,0.000105,2]
[398263921,1765474232508,-175.12,0.000106,2]
[398263923,1765474232517,-423.34831305,0.00010618,2]
[398263926,1765474232526,-175.12,0.000107,2]
[398263928,1765474232536,-175.12,0.000107,2]
[398263930,1765474232546,-175.12,0.000108,2]
[398263932,1765474232555,-175.12,0.000109,2]
[398263934,1765474232565,-175.12,0.00011,2]
[398263936,1765474232574,-2156.0,0.0001109,2]
[398263938,1765474232583,-1178.974,0.0001109,2]
[398263940,1765474232591,-631.0,0.0001109,2]
[398263941,1765474232600,-415.0,0.0001109,2]
[398263943,1765474232609,-175.12,0.000111,2]
[398263945,1765474232618,-175.12,0.000111,2]
[398263947,1765474232627,-175.12,0.000112,2]
[398263949,1765474232636,-175.12,0.000113,2]
[398263951,1765474232646,-300.0,0.00011311,2]
[398263953,1765474232655,-300.0,0.00011311,2]
[398263955,1765474232664,-300.0,0.00011311,2]
[398263956,1765474232674,-300.0,0.00011311,2]
[398263958,1765474232683,-134.45845639,0.00011311,2]
[398264112,1765474240487,-165.54154361,0.00011311,2]
[398264113,1765474240497,-300.0,0.00011311,2]
[398264114,1765474240506,-217.32976228,0.00011311,2]
[398264115,1765474240579,-82.67023772,0.00011311,2]
[398264116,1765474240588,-300.0,0.00011311,2]
[398264117,1765474240598,-300.0,0.00011311,2]
[398264118,1765474240608,-300.0,0.00011311,2]
[398264119,1765474240617,-300.0,0.00011311,2]
[398264120,1765474240627,-43.99487177,0.00011311,2]
[398264136,1765474245320,-256.00512823,0.00011311,2]
[398264137,1765474245334,-188.99487177,0.00011311,2]
[398264138,1765474245345,-111.00512823,0.00011311,2]
[398264139,1765474245355,-300.0,0.00011311,2]
[398264140,1765474245365,-92.55174875,0.00011311,2]
[398264141,1765474245403,-207.44825125,0.00011311,2]
[398264142,1765474245416,-175.12,0.000114,2]
[398264143,1765474245426,-175.12,0.000115,2]
[398264144,1765474245436,-175.12,0.000116,2]
[398264145,1765474245447,-70.96400952,0.000116,2]
[398264146,1765474245459,-104.15599048,0.000116,2]
[398264147,1765474245469,-175.12,0.000117,2]
[398264148,1765474245479,-98.67493998,0.00011734,2]
[398264166,1765474246464,-2722.50068712,0.00011734,2]
[398264167,1765474246474,-175.12,0.000118,2]
[398264168,1765474246487,-175.12,0.000119,2]
[398264169,1765474246497,-10544.34634867,0.00012,2]
[398264170,1765474268967,150.0,6.849e-05,2]
[398264171,1765474269356,150.0,7.175e-05,2]
[398264172,1765474270180,150.0,7.501e-05,2]
[398264173,1765474270255,150.0,7.827e-05,2]
[398264174,1765474274239,172.78,0.0001,2]
[398264175,1765474324613,152.45,0.0001,2]
[398264176,1765474332331,2674.0,0.0001,2]
[398264177,1765474335139,150.0,7.441e-05,2]
[398264178,1765474335554,150.0,7.796e-05,2]
[398264179,1765474336520,150.0,8.15e-05,2]
[398264180,1765474336947,150.0,8.504e-05,2]
[398264181,1765474337328,151.62,8.859e-05,2]
[398264182,1765474337744,181.94,9.213e-05,2]
[398264183,1765474338162,212.27,9.567e-05,2]
[398264184,1765474338551,242.59,9.922e-05,2]
[398264187,1765474398186,165.99,0.0001,2]
[398264188,1765474407163,150.0,7.393e-05,2]
[398264189,1765474407607,150.0,7.745e-05,2]
[398264190,1765474408003,150.0,8.097e-05,2]
[398264191,1765474408430,150.0,8.449e-05,2]
[398264192,1765474408830,150.0,8.801e-05,2]
[398264193,1765474409260,150.0,9.153e-05,2]
[398264194,1765474443657,2508.0,0.0001,2]
[398264195,1765474445048,152.89,0.0001,2]
[398264197,1765474513492,161.59,0.0001,2]
[398264198,1765474565298,153.17,0.0001,2]
[398264199,1765474637196,158.79,0.0001,2]
[398264200,1765474684481,153.35,0.0001,2]
[398264201,1765474754425,156.99,0.0001,2]
[398264202,1765474805021,153.47,0.0001,2]
[398264203,1765474824972,167.4433437,0.0001919,99]
[398264204,1765474825486,167.4433437,0.0001919,99]